Cogmind - Beta 16 @@@ ROGUE MODE // 2025.10.31 @ 10:25:19 Player: Roadie Result: Destroyed by Y-45 Defender with Beam Rifle Performance ------------- Evolutions (1) 500 Regions Visited (2) 400 Robots Destroyed (19) 95 Value Destroyed (474) 474 Prototype IDs (4) 80 Alien Tech Used (0) 0 Bonus (0) 0 TOTAL SCORE: 1549 Bonus ------- None Cogmind --------- Core Integrity 0/400 Matter 92/300 Energy 100/100 System Corruption 0% Temperature Cool (9) Movement Core (200) Ox3 Location -9/Materials Parts ------- > --- POWER (1) -------- (None) > --- PROPULSION (2) --- (None) > --- UTILITY (4) ------ Medium Storage Unit Signal Interpreter > --- WEAPON (2) ------- (None) > --- INVENTORY (10) --- Armored Wheel Structural Scanner Seismic Detector Hardened Medium Armor Plating Light EM Pulse Cannon Light EM Pulse Cannon Ion Cannon Ion Cannon Peak State ------------ > --- POWER ------------ Ion Engine > --- PROPULSION ------- Armored Wheel Armored Wheel > --- UTILITY ---------- Medium Storage Unit Sensor Array Signal Interpreter ECM Suite > --- WEAPON ----------- Ion Cannon Ion Cannon > --- INVENTORY -------- Armored Wheel Structural Scanner Seismic Detector Light EM Pulse Cannon Light EM Pulse Cannon Grenade Launcher Rocket Launcher [Rating: 16] Favorites ----------- Power Ion Engine Engine Ion Engine Propulsion Armored Wheel Wheel Armored Wheel Utility Signal Interpreter Device ECM Suite Storage Medium Storage Unit Processor Signal Interpreter Weapon Light EM Pulse Cannon Energy Gun EM Pulse Gun Energy Cannon Light EM Pulse Cannon Ballistic Gun Light Assault Rifle Launcher Rocket Launcher Build | -11 -10 -9 ------- Run | Yrd Mat Mat Slots Evolved 2 | . . 2 Power . | . . . Propulsion . | . . . Utility 2 | . . 2 Weapon . | . . . Parts Attached 24 | 6 5 13 Power 2 | 1 . 1 Engine 2 | 1 . 1 Core . | . . . Reactor . | . . . Propulsion 5 | 2 2 1 Treads . | . . . Leg . | . . . Wheel 5 | 2 2 1 Hover . | . . . Flight . | . . . Utility 5 | 1 2 2 Device 2 | . . 2 Storage 2 | 1 1 . Processor 1 | . 1 . Hackware . | . . . Protection . | . . . Artifact . | . . . Weapon 12 | 2 1 9 Energy Gun 1 | 1 . . Energy Cannon 6 | . 1 5 Ballistic Gun 2 | 1 . 1 Ballistic Cannon . | . . . Launcher 3 | . . 3 Special Weapon . | . . . Impact Weapon . | . . . Slashing Weapon . | . . . Piercing Weapon . | . . . Special Melee Weapon . | . . . Unidentified Prototypes . | . . . Parts Lost 10 | . 1 9 Power 1 | . . 1 Propulsion 2 | . . 2 Utility 2 | . . 2 Weapon 5 | . 1 4 Highest Loss Streak 8 | . 1 8 To Critical Strikes . | . . . Average Backups 7 | 3 8 7 Power . | . 1 . Propulsion 1 | 1 2 1 Utility 2 | . 2 2 Weapon 3 | . 3 4 Tool/Special . | . . . Unused Backups 10 | . 6 4 Power . | . . . Propulsion 3 | . 2 1 Utility 5 | . 2 3 Weapon 2 | . 2 . Tool/Special . | . . . Average Slot Usage (%) 94 | . 94 93 Engine 11 | . 14 9 Wheel 23 | . 28 20 Device 11 | . . 20 Storage 12 | . 14 11 Processor 10 | . 10 11 Energy Gun 9 | . 14 5 Energy Cannon 11 | . 12 11 Launcher 1 | . . 3 Peak Build Rating 16 | 6 11 16 Average Rating 11 | 3 10 12 On Entrance 5 | . 6 9 Avg Prop Armor Cover (%) . | . . . Naked Turns . | . . . Heaviest Build 30 | 13 21 30 Greatest Support 32 | 32 32 24 Greatest Overweight (x) 6 | 2 . 6 Average Overweight (x) . | . . . Largest Inventory Capacity 10 | 8 10 10 Average Capacity 9 | 6 9 10 Most Carried 10 | 5 10 10 Average Carried 7 | 3 8 7 Final Capacity 10 | 8 10 10 Final Carried 10 | 4 10 8 Class Distribution -------------------- 100% | Mutant Dominant Class ---------------- Mutant | -10/Materials Mutant | -9/Materials Resources | -11 -10 -9 ----------- Run | Yrd Mat Mat Matter Collected 425 | 243 67 115 Remotely . | . . . Salvage Created 468 | . 214 254 Parts 31 | . 13 18 Haulers Intercepted 1 | . . 1 Recyclers Shooed . | . . . Parts Field Recycled . | . . . Retrieved Matter . | . . . Parts Self-Destructed . | . . . Prevented . | . . . Parts Restored . | . . . Kills | -11 -10 -9 ------- Run | Yrd Mat Mat Combat Hostiles Destroyed 15 | . 5 10 Cannons 3 | . 3 . AOE 12 | . 2 10 Classes Destroyed 6 | . 2 4 Hauler 1 | . . 1 Recycler 1 | . . 1 Watcher 2 | . 1 1 Swarmer 5 | . . 5 Grunt 9 | . 5 4 Sentry 1 | . . 1 Best Kill Streak 5 | . 3 5 Combat Bots Only 4 | . 3 4 Max Kills in Single Turn 3 | . 1 3 Gunslinging . | . . . Exploded 2 | . 1 2 Melee . | . . . Uniques/NPCs Destroyed . | . . . Combat | -11 -10 -9 -------- Run | Yrd Mat Mat Hostile Shots Fired 221 | . 59 162 Missed 69 | . 19 50 Hits 152 | . 40 112 Projectile 152 | . 40 112 Critical Strikes 2 | . 1 1 Damage Taken 1771 | . 473 1298 Core 496 | . 88 408 Absorbed by Shields . | . . . Core Remaining (%) 82 | 100 64 . Volleys Fired 37 | . 13 24 Largest 2 | . 2 2 Hottest 120 | . 96 120 Shots Fired 59 | . 26 33 Gun 16 | . 13 3 Cannon 23 | . 13 10 Launcher 20 | . . 20 Special . | . . . Kinetic 3 | . . 3 Thermal 4 | . . 4 Explosive 20 | . . 20 Electromagnetic 32 | . 26 6 Robot Hit Streak 5 | . 5 5 Robot Miss Streak 5 | . 4 5 Penetration Max . | . . . Secondary Targets . | . . . Shots Hit Robots 26 | . 13 13 Core Hits 30 | . 7 23 Critical Kills . | . . . Critical Parts Destroyed . | . . . Critical Strikes . | . . . Melee Attacks . | . . . Impact . | . . . Slashing . | . . . Piercing . | . . . Sneak Attacks . | . . . Combat Hostiles . | . . . Follow-up Attacks . | . . . Damage Inflicted 1526 | . 402 1124 Guns 83 | . 83 . Cannons 267 | . 207 60 Explosions 1176 | . 112 1064 Melee . | . . . Ramming . | . . . Kinetic . | . . . Thermal 236 | . 112 124 Explosive 963 | . . 963 Electromagnetic 327 | . 290 37 Impact . | . . . Slashing . | . . . Piercing . | . . . Highest Corruption . | . . . Average Corruption . | . . . Corruption Purged . | . . . Corruption Blocked . | . . . Overload Shots . | . . . Overflow Damage 60 | . . 60 Projectiles 3 | . . 3 Explosions 57 | . . 57 Melee . | . . . Knockbacks . | . . . Impact . | . . . Kinetic . | . . . Secondary . | . . . Self-Inflicted Damage 245 | . 46 199 Shots 6 | . 1 5 Rammed . | . . . Targets Rammed . | . . . Kicked . | . . . Crushed . | . . . Highest Temperature 215 | . 215 61 Average Temperature 69 | . 88 23 Received Heat Transfer 366 | . 189 177 Siege Activations . | . . . Martial Activations . | . . . Shielding Activations . | . . . Robots Disrupted . | . . . Combat Hostiles . | . . . Robots Corrupted . | . . . Combat Hostiles . | . . . Parts Fried 1 | . 1 . Impact Corruptions . | . . . Robots Melted . | . . . Combat Hostiles . | . . . Parts Melted . | . . . Heat Transferred 337 | . 200 137 Parts Sabotaged . | . . . Parts Stolen . | . . . Parts Stripped . | . . . Power Chain Reactions 3 | . 2 1 Alert | -11 -10 -9 ------- Run | Yrd Mat Mat Maximum Alert Level . | . . . Low Security (%) 100 | 100 100 100 Level 1 . | . . . Level 2 . | . . . Level 3 . | . . . Level 4 . | . . . Level 5 . | . . . High Security . | . . . Max Security . | . . . Peak Influence 197 | . 197 174 Initial 73 | . . 73 Average 60 | . 52 73 Influence Increases 642 | . 254 388 Destroy 0b10 Robot/C 300 | . 100 200 Destroy 0b10 Robot/NC 20 | . 5 15 Destroy Leader 76 | . 32 44 Successful Hack 11 | . . 11 Disable Machine 30 | . . 30 Destroy Structure 85 | . 12 73 Partial Spotted 15 | . . 15 Lose Combat Pursuer 105 | . 105 . Influence Decreases 468 | . 80 388 Entered New Map 101 | . . 101 Time Decay 267 | . 70 197 Lost Part 100 | . 10 90 Squads Dispatched 5 | . 3 2 Investigation 2 | . 1 1 Extermination . | . . . Reinforcement 3 | . 2 1 Assault . | . . . Garrison . | . . . Intercept . | . . . Searches Triggered . | . . . Construction Impeded . | . . . Haulers Reinforced . | . . . Active Scanning Responses . | . . . Cargo Convoy Interrupts . | . . . Stealth | -11 -10 -9 --------- Run | Yrd Mat Mat Distress Signals 1 | . 1 . Communications Jammed . | . . . Distress Signals . | . . . Times Spotted 48 | . 28 20 Peak Tracking Total 7 | . 7 7 Tactical Retreats 4 | . 2 2 ECM-based Alert Blocks 3 | . . 3 Traps | -11 -10 -9 ------- Run | Yrd Mat Mat Traps Triggered 2 | . 1 1 Indirectly . | . . . Trap Hack Attempts . | . . . Triggered . | . . . Disarmed . | . . . Reprogrammed . | . . . Reused . | . . . Traps Extracted . | . . . Installed . | . . . Triggered . | . . . Machines | -11 -10 -9 ---------- Run | Yrd Mat Mat Machines Disabled 2 | . . 2 Max in Single Turn 1 | . . 1 Machines Repaired . | . . . Machines Dismantled . | . . . Machines Sabotaged . | . . . Overloaded Fab Kills . | . . . Hacking | -11 -10 -9 --------- Run | Yrd Mat Mat Machines Accessed 6 | . 2 4 Terminals 4 | . 1 3 Fabricators . | . . . Repair Stations . | . . . Recycling Units 2 | . 1 1 Scanalyzers . | . . . Garrison Access . | . . . Total Hacks 13 | . 4 9 Successful 4 | . 2 2 Failed 9 | . 2 7 Catastrophic 1 | . . 1 Database Lockouts . | . . . Manual 2 | . . 2 Terminals 9 | . 2 7 Fabricators . | . . . Repair Stations . | . . . Recycling Units 4 | . 2 2 Scanalyzers . | . . . Garrison Access . | . . . Terminal Hacks 3 | . 1 2 Prototype ID Bank 2 | . . 2 Registered Components 1 | . 1 . Fabricator Hacks . | . . . Repair Station Hacks . | . . . Recycling Unit Hacks 1 | . 1 . Retrieve Components 1 | . 1 . Scanalyzer . | . . . Garrison Access Hacks . | . . . Unauthorized Hacks . | . . . Terminals . | . . . Fabricators . | . . . Repair Stations . | . . . Recycling Units . | . . . Scanalyzers . | . . . Garrison Access . | . . . Data Cores Recovered . | . . . Used . | . . . Hacking Detections 5 | . 1 4 Full Trace Events . | . . . Feedback Events . | . . . Feedback Blocked . | . . . Robot Schematics Acquired . | . . . Robots Built . | . . . Authchips . | . . . Time . | . . . Total Robot Build Rating . | . . . Part Schematics Acquired . | . . . Parts Built . | . . . Authchips . | . . . Time . | . . . Total Part Build Rating . | . . . Part Studies Acquired . | . . . Parts Repaired . | . . . Time . | . . . Parts Recycled . | . . . Recycled Matter . | . . . Retrieved Matter . | . . . Retrieved Components 9 | . 9 . Parts Scanalyzed . | . . . Part Schematics Acquired . | . . . Parts Damaged . | . . . Bothacking | -11 -10 -9 ------------ Run | Yrd Mat Mat Used RIF Installer . | . . . Robots Hacked . | . . . Non-combat . | . . . Combat . | . . . Robot Hacks Applied . | . . . Relay Couplers Released . | . . . Fabnet Peak Effective % . | . . . Robots Rewired . | . . . Allies Hacked . | . . . Hacks Repelled . | . . . Allies | -11 -10 -9 -------- Run | Yrd Mat Mat Total Allies . | . . . Largest Group . | . . . Highest-Rated Group . | . . . Highest-Rated Ally . | . . . Total Orders . | . . . Ally Attacks . | . . . Total Damage . | . . . Kills . | . . . Allies Corrupted . | . . . Allies Melted . | . . . Intel | -11 -10 -9 ------- Run | Yrd Mat Mat Active Infowar (turns) 380 | . . 380 Sensors 380 | . . 380 ECM 361 | . . 361 Robot Analysis Total . | . . . Derelict Logs Recovered . | . . . Drone Launches . | . . . Drone Recoveries . | . . . Exploration | -11 -10 -9 ------------- Run | Yrd Mat Mat Turns Passed 782 | 51 313 418 Spaces Moved 639 | 40 264 335 Core 18 | 11 . 7 Treads . | . . . Legs . | . . . Wheels 621 | 29 264 328 Hover . | . . . Flight . | . . . Fastest Speed 50 | 50 90 90 Average Speed 94 | 92 90 98 Slowest Speed 350 | 150 100 350 Overloaded Moves . | . . . Propulsion Burnouts . | . . . Robots Hopped . | . . . Potential Cave-ins 4 | . . 4 Cave-ins Triggered . | . . . Exploration Rate (%) 29 | 3 52 33 Regions Visited 2 Branch Regions . Pre-discovered Areas . | . . . Known Exits Taken 1 | . 1 . Unknown Exits Taken 1 | 1 . . Scrap Searched . | . . . Spaces Dug 34 | . . 34 Terrain Destroyed 113 | . 13 100 Melee . | . . . Projectile . | . . . AOE 113 | . 13 100 Terrain Rammed . | . . . Walls Destroyed . | . . . Machines Disabled . | . . . Actions | -11 -10 -9 --------- Run | Yrd Mat Mat Total 757 | 52 315 390 Wait 16 | . 11 5 Move 637 | 39 263 335 Hop . | . . . Pick Up 26 | 7 13 6 Fast Attach 5 | 3 1 1 Attach 9 | 3 . 6 Detach 2 | . . 2 Swap 11 | . 4 7 Drop 14 | . 10 4 Fire 37 | . 13 24 Melee . | . . . Ram . | . . . Kick . | . . . Crush . | . . . Escape Stasis . | . . . Rewire . | . . . Trap . | . . . Miscellaneous . | . . . Route ------- -11/Scrapyard -10/Materials -9/Materials History --------- Turn | Location | Event 24 | -11/Scrapyard | Discovered new exit (range 15) 52 | -11/Scrapyard | Entered Materials 309 | -10/Materials | Build established: Mutant 352 | -10/Materials | Discovered new exit (range 15) 364 | -10/Materials | Identified exit to Materials 365 | -10/Materials | Entered another Materials area 365 | -9/Materials | Evolved 2 slots: Utility x2 749 | -9/Materials | Core integrity fell below 50% 780 | -9/Materials | Core integrity fell below 20% 783 | -9/Materials | Destroyed by Y-45 Defender with Beam Rifle Last Messages --------------- [Achievement: Overwhelming] 00775_ Destroyed Hvy. Assault Rifle. 00776_ R-06 Scavenger collects Lgt. Assault Rifle. 00776_ U-05 Engineer builds a Wall. 00777_ The unstable cave ceiling collapses. 00777_ R-06 Scavenger crushed by falling debris. 00777_ R-06 Scavenger system corrupted by crushing effect. 00777_ R-06 Scavenger destroyed. 00777_ 51 Matter crushed. 00778_ Y-45 Defender destroyed. [Achievement: Resistances Are Futile] 00778_ K-01 Serf cleans the Purification Channel. 00779_ R-06 Scavenger collects Flight Unit. 00780_ The unstable cave ceiling collapses. 00780_ Rocket Launcher destroyed. 00780_ Destroyed Rocket Launcher. 00780_ A-02 Transporter destroyed. 00780_ U-05 Engineer lays Concrete. 00782_ Purification Channel disabled. 00782_ K-01 Serf collects debris. Map ----- +----------------------------------------------------+ | ?# """ #???????# # | | ?# #???????# + | | ?#"" """ #???????# ##################### # | | ?#"T """ #???????# #???? #???????# # | | ?#"" """ #???????# #??? #???????# % % # | | ?# #?????### ###?] #??????## [% # | | ######+########## # #??????# = # | | # #??????# * # | | T / #??????# = # | | [ # #??????# #+### | | ################# # #??????## | | ????????????????###+###?##+######??????## """ "" | | ????????????????? ???? #??????????## "" | | ??????????????? #?? #??????????# " "" | | ?????????????# """ #?? #??????????# | | ?????????????# """ #?? #??????????# # ##### | | ?????????????# """ " " #?# ##?????????# # #??? | | ?????????????# "R" ### #?????????# ####??? | | ????????????? [ """ # #?########## # #???? | | ??????????????? # ### ##???? | | ?????????????####+#### *=[ ## """"""" ####????? | | ?????????????# [% ** # """"""" ##???????? | | ?????????????# "" [ *%*## """"""" #????????? | | ?????????????# "Y a YY* ## " """" #????????? | | ?????????????# "" # " ###??????? | | ????????????## ![ = @ # +??????? | | ????????????# =[ # ## ] #??????? | | ????????????## # ###### # # ?????? | | ?????????????# # r [[[ ^+ #?? | | ##############+#####"""# [[ ] #?? | | % [[ #####?? | | % ? | | %= #? | | ############# #### %m #? | | ????????????# #??## #? | | ????????????#!!!! ]#???##u k #? | | ????????????#! !! ]#???## " ?? | | ????????????########????# "" # #+#?? | | ????????????????????????#![ "" ??? | | ????????????????????????#!k """ ??? | | ????????????????????????#[[ "" # ???? | | ????????????????????????# ""? #?????? | | ????????????????????????# ""? #?????? | | ????????????????????????# "T" "?? #####??????? | | ???????????????????????? """ ?? #??????????? | | ???????????????????????? ? ????????????????? | | ??????????????????????? ???? ????????????????? | | ??????????????????????????????#/#????????????????? | | ??????????????????????????????? ?????????????????? | | ?????????????????????????????????????????????????? | +----------------------------------------------------+ Best States ------------- Heat Dissipation 28 Energy Generation 10 Energy Capacity 250 Matter Stores 300 Matter Capacity 300 Sight Range 16 Robot Scan Range 14 Terrain Scan Density 10 ECM Strength 1 Evasion (%) 50 Item Schematics ----------------- None Robot Schematics ------------------ None Fabricated ------------ Nothing Repaired ---------- Nothing Studied --------- None Alien Tech Used ----------------- None Achievements -------------- Overwhelming Resistances Are Futile Challenges ------------ None Game ------ Seed CompactAnalysisImmobilizer Manual? 0 Play Time 00:16:54 Cumulative 23.0 hours Start 2025.10.31 @ 10:07:53 End 2025.10.31 @ 10:25:19 Sessions 1 Manual Loads 0 Difficulty Rogue Special Mode None Game No. 28 Rogue 28 Adventurer 0 Explorer 0 Win Type - Total 0 Types 0/0/0/0/0/0/0/0/0/0 Lore% 11 Gallery% 21 Achievement% 14 Wizard Run 0 Options --------- Layout 0 ASCII 0 Keyboard 0 Movement Mouse Keybinds 0 Fullscreen 2 Font 24/Smallcaps Map View 183x50 Zoom Use 0% Tactical HUD 1 Map Filters NONE Filters NONE Steam 1 RUN: 352093f0-2d3d-4e7b-a599-ab9ef71a6fc2